[Event "CCT Chessable Masters Play-In 2025"]
[Site "Online"]
[Date "2025.02.17"]
[Round "3.25"]
[White "Gokerkan, Cem Kaan"]
[Black "Santos Latasa, Jaime"]
[Result "0-1"]
[ECO "B22"]
[WhiteElo "2473"]
[BlackElo "2631"]
[PlyCount "82"]
[EventDate "2025.02.13"]
[EventType "swiss"]
[EventCountry "NET"]
[TimeControl "600"]
[WhiteClock "0:00:42"]
[BlackClock "0:03:49"]

1. e4 {[%emt 0:00:20]} c5 {[%emt 0:00:03]} 2. c3 {[%emt 0:00:01]} Nf6 {[%emt 0:00:02]} 3. e5 {[%emt 0:00:01]} Nd5 {[%emt 0:00:01]} 4. d4 {[%emt 0:00:00]} cxd4 {[%emt 0:00:01]} 5. Bc4 {[%emt 0:00:01]} Nb6 {[%emt 0:00:03]} 6. Bb3 {[%emt 0:00:01]} d5 {[%emt 0:00:04]} 7. cxd4 {[%emt 0:00:10]} Nc6 {[%emt 0:00:03]} 8. Bc2 {[%emt 0:00:02]} Nb4 {[%emt 0:00:05]} 9. Nc3 {[%emt 0:00:01]} Bg4 {[%emt 0:00:20]} 10. Nge2 {[%emt 0:00:03]} e6 {[%emt 0:00:07]} 11. Bb1 {[%emt 0:00:07]} Be7 {[%emt 0:00:06]} 12. O-O {[%emt 0:00:33]} Qd7 {[%emt 0:00:20]} 13. a3 {[%emt 0:00:02]} Nc6 {[%emt 0:00:02]} 14. Qd3 {[%emt 0:00:25]} Bf5 {[%emt 0:00:25]} 15. Qg3 {[%emt 0:00:01]} Bg6 {[%emt 0:00:03]} 16. Rd1 {[%emt 0:01:04]} O-O {[%emt 0:00:16]} 17. Nf4 {[%emt 0:00:02]} Bxb1 {[%emt 0:00:06]} 18. Rxb1 {[%emt 0:00:01]} f6 {[%emt 0:00:20]} 19. Nh5 {[%emt 0:00:32]} Rf7 {[%emt 0:00:02]} 20. Bh6 {[%emt 0:00:25]} Bd8 {[%emt 0:00:10]} 21. exf6 {[%emt 0:02:03]} Bxf6 {[%emt 0:00:03]} 22. Nb5 {[%emt 0:00:26]} Kh8 {[%emt 0:00:36]} 23. Bf4 {[%emt 0:00:28]} Be7 {[%emt 0:00:16]} 24. Nd6 {[%emt 0:01:42]} Bxd6 {[%emt 0:00:17]} 25. Bxd6 {[%emt 0:00:00]} Nc4 {[%emt 0:00:23]} 26. Bf4 {[%emt 0:00:01]} Rf5 {[%emt 0:00:26]} 27. Qg4 {[%emt 0:00:01]} Qf7 {[%emt 0:00:04]} 28. Bg5 {[%emt 0:00:15]} h6 {[%emt 0:00:18]} 29. h4 {[%emt 0:00:01]} hxg5 {[%emt 0:00:14]} 30. hxg5 {[%emt 0:00:00]} Rxf2 {[%emt 0:00:02]} 31. Qh4 {[%emt 0:00:11]} Kg8 {[%emt 0:00:09]} 32. Qxf2 {[%emt 0:00:01]} Qxh5 {[%emt 0:00:01]} 33. Rf1 {[%emt 0:00:00]} Nd6 {[%emt 0:00:04]} 34. Rbe1 {[%emt 0:00:05]} Ne4 {[%emt 0:00:06]} 35. Qf4 {[%emt 0:00:00]} Re8 {[%emt 0:00:10]} 36. Re3 {[%emt 0:00:03]} Nxd4 {[%emt 0:00:10]} 37. Qe5 {[%emt 0:00:01]} Ne2+ {[%emt 0:00:03]} 38. Rxe2 {[%emt 0:00:00]} Qxe2 {[%emt 0:00:01]} 39. Qc7 {[%emt 0:00:00]} Qe3+ {[%emt 0:00:04]} 40. Kh2 {[%emt 0:00:02]} Nxg5 {[%emt 0:00:03]} 41. Qd7 {[%emt 0:00:06]} Rf8 {[%emt 0:00:02]} 0-1

[Event "CCT Chessable Masters Play-In 2025"]
[Site "Online"]
[Date "2025.02.17"]
[Round "3.26"]
[White "Matinian, Nikita"]
[Black "Kuzubov, Yuriy"]
[Result "0-1"]
[ECO "C65"]
[WhiteElo "2415"]
[BlackElo "2597"]
[PlyCount "58"]
[EventDate "2025.02.13"]
[EventType "swiss"]
[EventCountry "NET"]
[TimeControl "600"]
[WhiteClock "0:00:09"]
[BlackClock "0:01:51"]

1. e4 {[%emt 0:00:01]} e5 {[%emt 0:00:05]} 2. Nf3 {[%emt 0:00:01]} Nc6 {[%emt 0:00:06]} 3. Bb5 {[%emt 0:00:01]} Nf6 {[%emt 0:00:03]} 4. d3 {[%emt 0:00:11]} Bc5 {[%emt 0:00:02]} 5. Bxc6 {[%emt 0:00:02]} dxc6 {[%emt 0:00:00]} 6. Be3 {[%emt 0:00:04]} Bd6 {[%emt 0:00:04]} 7. h3 {[%emt 0:00:05]} h6 {[%emt 0:00:38]} 8. Nc3 {[%emt 0:00:20]} c5 {[%emt 0:00:19]} 9. Qe2 {[%emt 0:00:23]} Nd7 {[%emt 0:00:04]} 10. O-O {[%emt 0:00:42]} Nf8 {[%emt 0:00:09]} 11. a4 {[%emt 0:00:01]} g5 {[%emt 0:00:12]} 12. Nd2 {[%emt 0:00:09]} h5 {[%emt 0:00:06]} 13. Nc4 {[%emt 0:00:28]} Ng6 {[%emt 0:00:10]} 14. Nd5 {[%emt 0:02:10]} Be6 {[%emt 0:01:00]} 15. b4 {[%emt 0:00:58]} cxb4 {[%emt 0:00:19]} 16. d4 {[%emt 0:00:02]} g4 {[%emt 0:02:02]} 17. f4 {[%emt 0:02:53]} exf4 {[%emt 0:00:10]} 18. Nxd6+ {[%emt 0:00:04]} Qxd6 {[%emt 0:00:02]} 19. Nxf4 {[%emt 0:00:17]} Nxf4 {[%emt 0:00:06]} 20. Rxf4 {[%emt 0:00:00]} gxh3 {[%emt 0:00:19]} 21. Qb5+ {[%emt 0:00:05]} Bd7 {[%emt 0:01:02]} 22. Qxb7 {[%emt 0:00:13]} Bc6 {[%emt 0:00:02]} 23. Qa6 {[%emt 0:00:01]} Rg8 {[%emt 0:00:11]} 24. d5 {[%emt 0:00:00]} Rxg2+ {[%emt 0:00:11]} 25. Kh1 {[%emt 0:00:01]} Bd7 {[%emt 0:00:20]} 26. Qb7 {[%emt 0:00:08]} Rd8 {[%emt 0:00:12]} 27. Raf1 {[%emt 0:00:13]} Qg6 {[%emt 0:00:11]} 28. Qxc7 {[%emt 0:00:18]} Rh2+ {[%emt 0:00:03]} 29. Kxh2 {[%emt 0:00:00]} Qg2# {[%emt 0:00:01]} 0-1

[Event "CCT Chessable Masters Play-In 2025"]
[Site "Online"]
[Date "2025.02.17"]
[Round "3.27"]
[White "Rustemov, Alexander"]
[Black "Zhu, Jiner"]
[Result "1-0"]
[ECO "D38"]
[WhiteElo "2525"]
[BlackElo "2514"]
[PlyCount "37"]
[EventDate "2025.02.13"]
[EventType "swiss"]
[EventCountry "NET"]
[TimeControl "600"]
[WhiteClock "0:06:11"]
[BlackClock "0:04:10"]

1. d4 {[%emt 0:00:01]} Nf6 {[%emt 0:00:02]} 2. c4 {[%emt 0:00:01]} e6 {[%emt 0:00:01]} 3. Nf3 {[%emt 0:00:01]} d5 {[%emt 0:00:01]} 4. cxd5 {[%emt 0:00:01]} exd5 {[%emt 0:00:02]} 5. Nc3 {[%emt 0:00:01]} Bb4 {[%emt 0:00:06]} 6. Bf4 {[%emt 0:00:02]} Ne4 {[%emt 0:00:11]} 7. Rc1 {[%emt 0:00:21]} g5 {[%emt 0:00:01]} 8. Bd2 {[%emt 0:00:08]} Bxc3 {[%emt 0:01:48]} 9. Bxc3 {[%emt 0:00:17]} Nc6 {[%emt 0:00:03]} 10. e3 {[%emt 0:00:09]} Bf5 {[%emt 0:00:10]} 11. Bb5 {[%emt 0:00:09]} Bd7 {[%emt 0:00:12]} 12. Qb3 {[%emt 0:00:52]} a6 {[%emt 0:00:08]} 13. Bd3 {[%emt 0:00:18]} g4 {[%emt 0:00:51]} 14. Bxe4 {[%emt 0:00:36]} dxe4 {[%emt 0:00:04]} 15. Nd2 {[%emt 0:00:01]} O-O {[%emt 0:00:28]} 16. d5 {[%emt 0:00:16]} Ne7 {[%emt 0:01:36]} 17. Nxe4 {[%emt 0:00:03]} Bf5 {[%emt 0:00:02]} 18. Nf6+ {[%emt 0:00:09]} Kg7 {[%emt 0:00:04]} 19. e4 {[%emt 0:00:23]} 1-0

[Event "CCT Chessable Masters Play-In 2025"]
[Site "Online"]
[Date "2025.02.17"]
[Round "3.28"]
[White "Warmerdam, Max"]
[Black "Andreikin, Dmitry"]
[Result "0-1"]
[ECO "A04"]
[WhiteElo "2638"]
[BlackElo "2695"]
[PlyCount "74"]
[EventDate "2025.02.13"]
[EventType "swiss"]
[EventCountry "NET"]
[TimeControl "600"]
[WhiteClock "0:01:09"]
[BlackClock "0:03:57"]

1. Nf3 {[%emt 0:00:01]} b5 {[%emt 0:00:05]} 2. g3 {[%emt 0:00:00]} Bb7 {[%emt 0:00:01]} 3. e3 {[%emt 0:00:10]} a6 {[%emt 0:00:04]} 4. b3 {[%emt 0:00:01]} Nf6 {[%emt 0:00:14]} 5. c4 {[%emt 0:00:01]} bxc4 {[%emt 0:00:08]} 6. bxc4 {[%emt 0:00:01]} e6 {[%emt 0:00:16]} 7. Bg2 {[%emt 0:00:01]} Be7 {[%emt 0:00:01]} 8. Nc3 {[%emt 0:00:01]} Nc6 {[%emt 0:00:12]} 9. Rb1 {[%emt 0:00:07]} Na5 {[%emt 0:00:08]} 10. O-O {[%emt 0:00:26]} O-O {[%emt 0:00:03]} 11. d3 {[%emt 0:00:01]} c5 {[%emt 0:00:10]} 12. Bd2 {[%emt 0:00:06]} Rb8 {[%emt 0:00:05]} 13. Qc2 {[%emt 0:00:05]} d6 {[%emt 0:00:17]} 14. Rb2 {[%emt 0:00:04]} Bc6 {[%emt 0:00:02]} 15. Rfb1 {[%emt 0:00:03]} Rxb2 {[%emt 0:00:02]} 16. Qxb2 {[%emt 0:00:01]} Qa8 {[%emt 0:00:03]} 17. e4 {[%emt 0:00:31]} Rc8 {[%emt 0:00:20]} 18. Nd5 {[%emt 0:00:31]} exd5 {[%emt 0:00:17]} 19. exd5 {[%emt 0:00:05]} Nxd5 {[%emt 0:00:14]} 20. cxd5 {[%emt 0:01:24]} Bxd5 {[%emt 0:00:00]} 21. Bxa5 {[%emt 0:00:01]} Bxf3 {[%emt 0:00:06]} 22. Bxf3 {[%emt 0:00:06]} Qxf3 {[%emt 0:00:00]} 23. Qb7 {[%emt 0:00:01]} Qxb7 {[%emt 0:00:20]} 24. Rxb7 {[%emt 0:00:00]} Bf6 {[%emt 0:00:16]} 25. Rb6 {[%emt 0:00:47]} d5 {[%emt 0:00:12]} 26. Kf1 {[%emt 0:00:41]} c4 {[%emt 0:00:31]} 27. dxc4 {[%emt 0:00:01]} dxc4 {[%emt 0:00:00]} 28. Ke2 {[%emt 0:00:00]} c3 {[%emt 0:00:11]} 29. Kd1 {[%emt 0:00:37]} c2+ {[%emt 0:00:05]} 30. Kc1 {[%emt 0:00:02]} Bd4 {[%emt 0:00:02]} 31. Rb3 {[%emt 0:00:24]} Bxf2 {[%emt 0:00:03]} 32. Bb6 {[%emt 0:00:13]} Be1 {[%emt 0:00:11]} 33. Rd3 {[%emt 0:01:23]} f5 {[%emt 0:00:12]} 34. Be3 {[%emt 0:00:27]} Bb4 {[%emt 0:00:33]} 35. Bd4 {[%emt 0:00:19]} Kf7 {[%emt 0:00:18]} 36. Bb2 {[%emt 0:00:00]} Be7 {[%emt 0:00:10]} 37. h4 {[%emt 0:00:09]} g5 {[%emt 0:00:11]} 0-1

[Event "CCT Chessable Masters Play-In 2025"]
[Site "Online"]
[Date "2025.02.17"]
[Round "3.29"]
[White "Alonso Rosell, Alvar"]
[Black "Martinez Alcantara, Jose Eduardo"]
[Result "1-0"]
[ECO "E14"]
[WhiteElo "2535"]
[BlackElo "2606"]
[PlyCount "99"]
[EventDate "2025.02.13"]
[EventType "swiss"]
[EventCountry "NET"]
[TimeControl "600"]
[WhiteClock "0:01:43"]

1. d4 {[%emt 0:00:01]} e6 {[%emt 0:00:03]} 2. Nf3 {[%emt 0:00:01]} b6 {[%emt 0:00:00]} 3. e3 {[%emt 0:00:01]} Bb7 {[%emt 0:00:01]} 4. Bd3 {[%emt 0:00:01]} Nf6 {[%emt 0:00:02]} 5. O-O {[%emt 0:00:02]} Be7 {[%emt 0:00:02]} 6. c4 {[%emt 0:00:01]} O-O {[%emt 0:00:04]} 7. Nc3 {[%emt 0:00:02]} d6 {[%emt 0:00:00]} 8. e4 {[%emt 0:00:02]} c5 {[%emt 0:00:03]} 9. d5 {[%emt 0:00:04]} e5 {[%emt 0:00:01]} 10. g3 {[%emt 0:00:06]} Nbd7 {[%emt 0:00:00]} 11. Nh4 {[%emt 0:00:08]} g6 {[%emt 0:00:01]} 12. Ng2 {[%emt 0:00:01]} Re8 {[%emt 0:00:01]} 13. f4 {[%emt 0:00:07]} exf4 {[%emt 0:00:04]} 14. gxf4 {[%emt 0:00:00]} Bf8 {[%emt 0:00:01]} 15. Bd2 {[%emt 0:00:04]} Bg7 {[%emt 0:00:03]} 16. Qf3 {[%emt 0:00:01]} a6 {[%emt 0:00:02]} 17. a4 {[%emt 0:00:02]} Qc7 {[%emt 0:00:26]} 18. Rae1 {[%emt 0:00:02]} Rf8 {[%emt 0:00:01]} 19. Re2 {[%emt 0:00:22]} Rae8 {[%emt 0:00:02]} 20. Be1 {[%emt 0:00:03]} Bc8 {[%emt 0:00:09]} 21. Bh4 {[%emt 0:00:02]} h6 {[%emt 0:00:18]} 22. Bg3 {[%emt 0:00:13]} Nh5 {[%emt 0:00:19]} 23. Be1 {[%emt 0:00:35]} Ndf6 {[%emt 0:00:56]} 24. h3 {[%emt 0:00:01]} Nd7 {[%emt 0:00:20]} 25. Kh1 {[%emt 0:00:13]} Qd8 {[%emt 0:00:17]} 26. Nh4 {[%emt 0:00:11]} Nxf4 {[%emt 0:02:11]} 27. Qxf4 {[%emt 0:00:02]} g5 {[%emt 0:00:01]} 28. Qd2 {[%emt 0:00:11]} gxh4 {[%emt 0:00:01]} 29. Rg2 {[%emt 0:00:02]} Ne5 {[%emt 0:00:16]} 30. Qxh6 {[%emt 0:00:41]} Ng6 {[%emt 0:00:01]} 31. Qe3 {[%emt 0:00:01]} Qd7 {[%emt 0:00:27]} 32. Rf3 {[%emt 0:01:20]} Re5 {[%emt 0:00:01]} 33. Ne2 {[%emt 0:00:11]} Qxa4 {[%emt 0:00:02]} 34. Nf4 {[%emt 0:00:12]} Qd1 {[%emt 0:00:40]} 35. Rf1 {[%emt 0:00:19]} Qa4 {[%emt 0:00:46]} 36. Bc3 {[%emt 0:00:19]} Qe8 {[%emt 0:00:01]} 37. Rfg1 {[%emt 0:00:07]} Kh7 {[%emt 0:00:09]} 38. Qe1 {[%emt 0:00:27]} Bh6 {[%emt 0:00:14]} 39. Bxe5 {[%emt 0:01:03]} Qxe5 {[%emt 0:00:13]} 40. Rxg6 {[%emt 0:00:05]} Qxf4 {[%emt 0:00:06]} 41. Rf6 {[%emt 0:00:09]} Qxf6 {[%emt 0:00:28]} 42. e5+ {[%emt 0:00:01]} Qf5 {[%emt 0:00:00]} 43. Qb1 {[%emt 0:00:11]} Qxd3 {[%emt 0:00:08]} 44. Qxd3+ {[%emt 0:00:01]} Kh8 {[%emt 0:00:00]} 45. e6 {[%emt 0:00:03]} Bg7 {[%emt 0:00:02]} 46. Qf3 {[%emt 0:00:22]} fxe6 {[%emt 0:00:03]} 47. Qh5+ {[%emt 0:00:01]} Kg8 {[%emt 0:00:02]} 48. Qg5 {[%emt 0:00:01]} Rf7 {[%emt 0:00:03]} 49. Qd8+ {[%emt 0:00:01]} Rf8 50. Qc7 {[%emt 0:00:01]} 1-0

[Event "CCT Chessable Masters Play-In 2025"]
[Site "Online"]
[Date "2025.02.17"]
[Round "3.30"]
[White "Ding, Liren"]
[Black "Bjerre, Jonas Buhl"]
[Result "0-1"]
[ECO "B38"]
[WhiteElo "2734"]
[BlackElo "2640"]
[PlyCount "138"]
[EventDate "2025.02.13"]
[EventType "swiss"]
[EventCountry "NET"]
[TimeControl "600"]
[WhiteClock "0:00:09"]
[BlackClock "0:00:44"]

1. e4 {[%emt 0:00:01]} c5 {[%emt 0:00:03]} 2. Nf3 {[%emt 0:00:01]} g6 {[%emt 0:00:00]} 3. c4 {[%emt 0:00:05]} Bg7 {[%emt 0:00:02]} 4. d4 {[%emt 0:00:01]} cxd4 {[%emt 0:00:00]} 5. Nxd4 {[%emt 0:00:00]} Nc6 {[%emt 0:00:01]} 6. Be3 {[%emt 0:00:02]} Qb6 {[%emt 0:00:01]} 7. Nb3 {[%emt 0:00:06]} Qd8 {[%emt 0:00:01]} 8. Nc3 {[%emt 0:00:23]} Bxc3+ {[%emt 0:00:02]} 9. bxc3 {[%emt 0:00:00]} Nf6 {[%emt 0:00:01]} 10. Bd3 {[%emt 0:00:18]} d6 {[%emt 0:00:17]} 11. f4 {[%emt 0:01:15]} Ng4 {[%emt 0:00:07]} 12. Bd2 {[%emt 0:00:06]} f5 {[%emt 0:00:09]} 13. Nd4 {[%emt 0:00:57]} O-O {[%emt 0:01:14]} 14. exf5 {[%emt 0:00:48]} Nxd4 {[%emt 0:00:02]} 15. cxd4 {[%emt 0:00:01]} Bxf5 {[%emt 0:00:03]} 16. Be2 {[%emt 0:00:07]} Nf6 {[%emt 0:00:49]} 17. O-O {[%emt 0:00:01]} Rc8 {[%emt 0:00:20]} 18. Qb3 {[%emt 0:00:25]} Qd7 {[%emt 0:00:38]} 19. h3 {[%emt 0:00:37]} h5 {[%emt 0:00:27]} 20. Rac1 {[%emt 0:00:12]} Kh7 {[%emt 0:00:03]} 21. Kh2 {[%emt 0:00:03]} b6 {[%emt 0:00:03]} 22. Be3 {[%emt 0:00:06]} Rc7 {[%emt 0:00:47]} 23. d5 {[%emt 0:00:02]} e6 {[%emt 0:00:08]} 24. Bd4 {[%emt 0:00:08]} Be4 {[%emt 0:00:25]} 25. Qb2 {[%emt 0:00:22]} Qe7 {[%emt 0:00:07]} 26. dxe6 {[%emt 0:00:11]} Qxe6 {[%emt 0:00:04]} 27. Rc3 {[%emt 0:00:14]} Qf5 {[%emt 0:00:37]} 28. Re3 {[%emt 0:00:12]} Re7 {[%emt 0:00:14]} 29. Bd3 {[%emt 0:00:30]} Ree8 {[%emt 0:00:11]} 30. Be2 {[%emt 0:00:29]} h4 {[%emt 0:00:26]} 31. Qd2 {[%emt 0:00:52]} Nh5 {[%emt 0:00:10]} 32. Bg4 {[%emt 0:00:04]} Ng3 {[%emt 0:00:01]} 33. Rxg3 {[%emt 0:00:19]} hxg3+ {[%emt 0:00:02]} 34. Kxg3 {[%emt 0:00:00]} Qf7 {[%emt 0:00:02]} 35. Kh2 {[%emt 0:00:03]} Bf5 {[%emt 0:00:11]} 36. Bf3 {[%emt 0:00:01]} Be4 {[%emt 0:00:01]} 37. Bg4 {[%emt 0:00:01]} Qxc4 {[%emt 0:00:14]} 38. Rc1 {[%emt 0:00:02]} Qf7 {[%emt 0:00:01]} 39. Qf2 {[%emt 0:00:02]} Qxf4+ {[%emt 0:00:07]} 40. Qxf4 {[%emt 0:00:03]} Rxf4 {[%emt 0:00:00]} 41. Rc7+ {[%emt 0:00:00]} Kg8 {[%emt 0:00:04]} 42. Rg7+ {[%emt 0:00:03]} Kf8 {[%emt 0:00:00]} 43. Rxa7 {[%emt 0:00:00]} Re7 {[%emt 0:00:09]} 44. Ra3 {[%emt 0:00:07]} Bf5 {[%emt 0:00:02]} 45. Be3 {[%emt 0:00:05]} Rfe4 {[%emt 0:00:05]} 46. Bh6+ {[%emt 0:00:02]} Kf7 {[%emt 0:00:01]} 47. Bf3 {[%emt 0:00:01]} Rd4 {[%emt 0:00:03]} 48. Bg5 {[%emt 0:00:00]} Rc7 {[%emt 0:00:05]} 49. Rb3 {[%emt 0:00:01]} Be4 {[%emt 0:00:05]} 50. Be3 {[%emt 0:00:00]} Ra4 {[%emt 0:00:05]} 51. Bxb6 {[%emt 0:00:01]} Rb7 {[%emt 0:00:05]} 52. Bxe4 {[%emt 0:00:05]} Rxe4 {[%emt 0:00:00]} 53. Rf3+ {[%emt 0:00:01]} Ke6 {[%emt 0:00:01]} 54. Bf2 {[%emt 0:00:01]} Rb2 {[%emt 0:00:03]} 55. a3 {[%emt 0:00:01]} Ree2 {[%emt 0:00:02]} 56. Kg3 {[%emt 0:00:01]} Ra2 {[%emt 0:00:00]} 57. h4 {[%emt 0:00:02]} d5 {[%emt 0:00:01]} 58. Bd4 {[%emt 0:00:03]} Rxg2+ {[%emt 0:00:01]} 59. Kf4 {[%emt 0:00:00]} Rae2 {[%emt 0:00:02]} 60. Re3+ {[%emt 0:00:01]} Rxe3 {[%emt 0:00:00]} 61. Bxe3 {[%emt 0:00:00]} Ra2 {[%emt 0:00:03]} 62. Bc5 {[%emt 0:00:01]} Rc2 {[%emt 0:00:00]} 63. Bb4 {[%emt 0:00:01]} Rc4+ {[%emt 0:00:05]} 64. Kg5 {[%emt 0:00:00]} d4 {[%emt 0:00:00]} 65. Kxg6 {[%emt 0:00:01]} d3 {[%emt 0:00:01]} 66. h5 {[%emt 0:00:01]} Rg4+ {[%emt 0:00:01]} 67. Kh7 {[%emt 0:00:01]} Rxb4 {[%emt 0:00:00]} 68. axb4 {[%emt 0:00:00]} d2 {[%emt 0:00:00]} 69. h6 {[%emt 0:00:01]} d1=Q {[%emt 0:00:01]} 0-1

[Event "CCT Chessable Masters Play-In 2025"]
[Site "Online"]
[Date "2025.02.17"]
[Round "3.31"]
[White "Robson, Ray"]
[Black "Nesterov, Arseniy"]
[Result "1-0"]
[ECO "D36"]
[WhiteElo "2689"]
[BlackElo "2591"]
[PlyCount "107"]
[EventDate "2025.02.13"]
[EventType "swiss"]
[EventCountry "NET"]
[TimeControl "600"]
[WhiteClock "0:02:43"]
[BlackClock "0:00:19"]

1. d4 {[%emt 0:00:01]} Nf6 {[%emt 0:00:26]} 2. c4 {[%emt 0:00:01]} e6 {[%emt 0:00:01]} 3. Nc3 {[%emt 0:00:00]} d5 {[%emt 0:00:01]} 4. cxd5 {[%emt 0:00:01]} exd5 {[%emt 0:00:00]} 5. Bg5 {[%emt 0:00:01]} c6 {[%emt 0:00:02]} 6. Qc2 {[%emt 0:00:01]} Be7 {[%emt 0:00:02]} 7. e3 {[%emt 0:00:00]} O-O {[%emt 0:00:01]} 8. Bd3 {[%emt 0:00:01]} Re8 {[%emt 0:00:00]} 9. Nge2 {[%emt 0:00:17]} Nbd7 {[%emt 0:00:02]} 10. O-O {[%emt 0:00:10]} Nf8 {[%emt 0:00:01]} 11. Rad1 {[%emt 0:00:15]} g6 {[%emt 0:00:02]} 12. f3 {[%emt 0:00:09]} Ne6 {[%emt 0:00:02]} 13. Bh4 {[%emt 0:00:05]} b5 {[%emt 0:00:02]} 14. h3 {[%emt 0:00:18]} Bd7 {[%emt 0:02:12]} 15. e4 {[%emt 0:00:18]} b4 {[%emt 0:00:06]} 16. Na4 {[%emt 0:00:18]} Rc8 {[%emt 0:01:39]} 17. e5 {[%emt 0:00:25]} Nh5 {[%emt 0:00:05]} 18. Bxe7 {[%emt 0:00:01]} Qxe7 {[%emt 0:00:00]} 19. f4 {[%emt 0:00:01]} c5 {[%emt 0:00:05]} 20. Nxc5 {[%emt 0:00:01]} Nxc5 {[%emt 0:00:06]} 21. dxc5 {[%emt 0:00:01]} Rxc5 {[%emt 0:00:00]} 22. Qd2 {[%emt 0:00:01]} a5 {[%emt 0:00:04]} 23. Qe3 {[%emt 0:00:49]} f6 {[%emt 0:00:13]} 24. Rde1 {[%emt 0:00:15]} fxe5 {[%emt 0:00:09]} 25. fxe5 {[%emt 0:00:02]} Ng7 {[%emt 0:01:47]} 26. Nd4 {[%emt 0:00:30]} Ne6 {[%emt 0:00:02]} 27. Nxe6 {[%emt 0:00:02]} Bxe6 {[%emt 0:00:02]} 28. Rf6 {[%emt 0:00:01]} d4 {[%emt 0:00:56]} 29. Qxd4 {[%emt 0:00:15]} Rd5 {[%emt 0:00:02]} 30. Qe3 {[%emt 0:00:06]} Qc5 {[%emt 0:00:13]} 31. b3 {[%emt 0:00:13]} Kg7 {[%emt 0:00:09]} 32. Bc4 {[%emt 0:00:55]} Qxe3+ {[%emt 0:00:08]} 33. Rxe3 {[%emt 0:00:00]} Rd1+ {[%emt 0:00:04]} 34. Rf1 {[%emt 0:00:03]} Rd2 {[%emt 0:00:02]} 35. Bxe6 {[%emt 0:00:27]} Rxe6 {[%emt 0:00:00]} 36. Rf2 {[%emt 0:00:01]} Rd1+ {[%emt 0:00:02]} 37. Kh2 {[%emt 0:00:00]} Rd5 {[%emt 0:00:00]} 38. Rfe2 {[%emt 0:00:03]} Kf7 {[%emt 0:00:06]} 39. Kg3 {[%emt 0:00:01]} Rc6 {[%emt 0:00:02]} 40. Rf3+ {[%emt 0:00:04]} Ke7 {[%emt 0:00:06]} 41. Ref2 {[%emt 0:00:01]} Rxe5 {[%emt 0:00:04]} 42. Rf7+ {[%emt 0:00:01]} Kd6 {[%emt 0:00:01]} 43. Rxh7 {[%emt 0:00:03]} Rc3+ {[%emt 0:00:01]} 44. Kg4 {[%emt 0:00:15]} Re4+ {[%emt 0:00:03]} 45. Kg5 {[%emt 0:00:01]} Rg3+ {[%emt 0:00:01]} 46. Kh6 {[%emt 0:00:10]} Rh4+ {[%emt 0:00:03]} 47. Kg7 {[%emt 0:00:01]} Rxh7+ {[%emt 0:00:01]} 48. Kxh7 {[%emt 0:00:00]} Ke5 {[%emt 0:00:01]} 49. Kg7 {[%emt 0:00:20]} Ke4 {[%emt 0:00:08]} 50. Kf6 {[%emt 0:00:02]} Kd4 {[%emt 0:00:08]} 51. Rf4+ {[%emt 0:00:04]} Kd5 {[%emt 0:00:04]} 52. Rg4 {[%emt 0:00:02]} Re3 {[%emt 0:00:00]} 53. Rg5+ {[%emt 0:00:03]} Kd4 {[%emt 0:00:04]} 54. Rxa5 {[%emt 0:00:01]} 1-0

[Event "CCT Chessable Masters Play-In 2025"]
[Site "Online"]
[Date "2025.02.17"]
[Round "3.32"]
[White "Esipenko, Andrey"]
[Black "Narayanan, Srinath"]
[Result "0-1"]
[ECO "B53"]
[WhiteElo "2695"]
[BlackElo "2516"]
[PlyCount "66"]
[EventDate "2025.02.13"]
[EventType "swiss"]
[EventCountry "NET"]
[TimeControl "600"]
[WhiteClock "0:01:34"]
[BlackClock "0:02:40"]

1. e4 {[%emt 0:00:07]} c5 {[%emt 0:00:07]} 2. Nf3 {[%emt 0:00:02]} d6 {[%emt 0:00:00]} 3. d4 {[%emt 0:00:00]} cxd4 {[%emt 0:00:01]} 4. Qxd4 {[%emt 0:00:01]} a6 {[%emt 0:00:03]} 5. Nc3 {[%emt 0:00:07]} Nc6 {[%emt 0:00:01]} 6. Qd3 {[%emt 0:00:02]} g6 {[%emt 0:00:09]} 7. Be2 {[%emt 0:00:03]} Bg7 {[%emt 0:00:01]} 8. O-O {[%emt 0:00:01]} Bg4 {[%emt 0:00:06]} 9. Bg5 {[%emt 0:00:41]} Bxf3 {[%emt 0:00:21]} 10. Bxf3 {[%emt 0:00:01]} Nf6 {[%emt 0:00:01]} 11. Be2 {[%emt 0:00:12]} O-O {[%emt 0:00:02]} 12. Nd5 {[%emt 0:00:06]} Nd7 {[%emt 0:00:27]} 13. c3 {[%emt 0:00:04]} h6 {[%emt 0:00:27]} 14. Bh4 {[%emt 0:00:03]} g5 {[%emt 0:00:49]} 15. Bg3 {[%emt 0:00:03]} Nc5 {[%emt 0:00:03]} 16. Qc2 {[%emt 0:00:05]} Rc8 {[%emt 0:00:01]} 17. Rad1 {[%emt 0:00:02]} Ne5 {[%emt 0:00:12]} 18. f4 {[%emt 0:00:16]} gxf4 {[%emt 0:00:04]} 19. Bxf4 {[%emt 0:00:00]} e6 {[%emt 0:00:11]} 20. Ne3 {[%emt 0:00:04]} Qe7 {[%emt 0:00:02]} 21. Bh5 {[%emt 0:00:34]} Rc6 {[%emt 0:00:18]} 22. g3 {[%emt 0:00:55]} b5 {[%emt 0:00:07]} 23. Rf2 {[%emt 0:00:11]} a5 {[%emt 0:00:13]} 24. a3 {[%emt 0:00:32]} b4 {[%emt 0:00:59]} 25. Bxe5 {[%emt 0:00:23]} Bxe5 {[%emt 0:00:02]} 26. Rdf1 {[%emt 0:01:48]} Qg5 {[%emt 0:00:18]} 27. Qe2 {[%emt 0:00:03]} bxc3 {[%emt 0:00:39]} 28. Bxf7+ {[%emt 0:00:19]} Kh8 {[%emt 0:00:26]} 29. Bh5 {[%emt 0:00:26]} Rxf2 {[%emt 0:00:14]} 30. Qxf2 {[%emt 0:00:00]} Rc8 {[%emt 0:00:01]} 31. Qf7 {[%emt 0:00:38]} Qxe3+ {[%emt 0:00:12]} 32. Kg2 {[%emt 0:00:01]} c2 {[%emt 0:00:38]} 33. Bg6 {[%emt 0:00:36]} Bg7 {[%emt 0:00:05]} 0-1